[Event "27th Fajr Cup Masters 2019"]
[Site "Tehran"]
[Date "2019.02.08"]
[Round "5.1"]
[White "Kuzubov, Yuriy"]
[Black "Lorparizangeneh, Shahin"]
[Result "1/2-1/2"]
[ECO "B12"]
[WhiteElo "2650"]
[BlackElo "2493"]
[Annotator "RC"]
[PlyCount "131"]
[EventDate "2019.02.05"]
[EventType "swiss"]
[EventCountry "IRI"]
[SourceTitle "playchess.com"]
[Source "ChessBase"]
[SourceQuality "1"]
[TimeControl "5400+30"]

1. e4 {[%emt 0:00:00]} c6 {[%emt 0:04:15]} 2. d4 {[%emt 0:02:57]} d5 {[%emt 0:00:06]} 3. e5 {[%emt 0:00:03]} c5 {[%emt 0:01:25]} 4. dxc5 {[%emt 0:00:07]} e6 {[%emt 0:00:05]} 5. a3 {[%emt 0:00:28]} Bxc5 {[%emt 0:00:06]} 6. b4 {[%emt 0:00:10]} Be7 {[%emt 0:00:05]} 7. Nf3 {[%emt 0:01:43]} a5 {[%emt 0:02:28]} 8. b5 {[%emt 0:00:19]} Nd7 {[%emt 0:03:31]} 9. Bd3 {[%emt 0:04:37]} Qc7 {[%emt 0:10:14]} 10. Qe2 {[%emt 0:02:01]} Nc5 {[%emt 0:01:20]} 11. O-O {[%emt 0:00:25]} a4 {[%emt 0:02:25]} 12. Be3 {[%emt 0:20:07]} b6 {[%emt 0:13:22]} 13. Nbd2 {[%emt 0:11:13]} Bb7 {[%emt 0:00:53]} 14. Rfc1 {[%emt 0:06:43]} Rd8 {[%emt 0:03:20]} 15. c3 {[%emt 0:04:07]} Nh6 {[%emt 0:12:19]} 16. Bc2 {[%emt 0:04:30]} Nf5 {[%emt 0:01:18]} 17. Bd4 {[%emt 0:09:57]} h5 {[%emt 0:01:24]} 18. Bxf5 {[%emt 0:03:59]} exf5 {[%emt 0:00:05]} 19. Qe3 {[%emt 0:01:53]} Rc8 {[%emt 0:08:12]} 20. Ne1 {[%emt 0:11:40]} Ne6 {[%emt 0:04:00]} 21. Ndf3 {[%emt 0:01:26]} f4 {[%emt 0:03:42]} 22. Qd2 {[%emt 0:00:43]} g5 {[%emt 0:01:40]} 23. Nd3 {[%emt 0:00:33]} h4 {[%emt 0:13:30]} 24. h3 {[%emt 0:01:00]} Bc5 {[%emt 0:01:09]} 25. Nh2 {[%emt 0:02:20]} Qe7 {[%emt 0:03:57]} 26. Qb2 {[%emt 0:00:56]} Kf8 {[%emt 0:02:37]} 27. Ng4 {[%emt 0:02:22]} Kg7 {[%emt 0:00:50]} 28. Nf6 {[%emt 0:00:42]} Qd8 {[%emt 0:01:12]} 29. Qe2 {[%emt 0:06:30]} Bxd4 {[%emt 0:01:28]} 30. cxd4 {[%emt 0:00:04]} Nxd4 {[%emt 0:00:15]} 31. Qg4 {[%emt 0:00:16]} Ne6 {[%emt 0:00:08]} 32. Rxc8 {[%emt 0:00:35]} Bxc8 {[%emt 0:01:23]} 33. Rc1 {[%emt 0:00:36]} Bb7 {[%emt 0:00:51]} 34. Nb4 {[%emt 0:01:01]} Qe7 {[%emt 0:00:36]} 35. Qf5 {[%emt 0:00:35]} Rh6 {[%emt 0:00:49]} 36. Qd3 {[%emt 0:00:40]} Nc5 {[%emt 0:00:59]} 37. Qf5 {[%emt 0:00:17]} Rg6 {[%emt 0:00:43]} 38. Nc6 {[%emt 0:00:25]} Qe6 {[%emt 0:01:35]} 39. Nd4 {[%emt 0:00:06]} Qe7 {[%emt 0:00:34]} 40. Ng4 {[%emt 0:01:09]} Nb3 {[%emt 0:00:25]} 41. Nxb3 {[%emt 0:00:37]} axb3 {[%emt 0:00:01]} 42. Qd3 {[%emt 0:00:26]} b2 {[%emt 0:00:23]} 43. Rb1 {[%emt 0:00:34]} Bc8 {[%emt 0:00:29]} 44. Qd4 {[%emt 0:00:34]} Bxg4 {[%emt 0:01:01]} 45. hxg4 {[%emt 0:00:04]} Re6 {[%emt 0:00:07]} 46. Rxb2 {[%emt 0:00:23]} Qxa3 {[%emt 0:00:14]} 47. Rb1 {[%emt 0:00:56]} Qa2 {[%emt 0:00:49]} 48. Rd1 {[%emt 0:00:32]} Qe2 {[%emt 0:00:11]} 49. Qxd5 {[%emt 0:00:15]} Qxg4 {[%emt 0:00:09]} 50. Rc1 {[%emt 0:00:47]} h3 {[%emt 0:00:58]} 51. Rc6 {[%emt 0:00:27]} Qxg2+ {[%emt 0:01:12]} 52. Qxg2 {[%emt 0:00:03]} hxg2 {[%emt 0:00:04]} 53. Kxg2 {[%emt 0:00:24]} Kg6 {[%emt 0:00:43]} 54. Kh3 {[%emt 0:00:51]} Kf5 {[%emt 0:00:48]} 55. Rc7 {[%emt 0:00:05]} Kg6 {[%emt 0:00:30]} 56. Rb7 {[%emt 0:00:57]} Rxe5 {[%emt 0:00:31]} 57. Rxb6+ {[%emt 0:00:02]} Kf5 {[%emt 0:00:29]} 58. Rb7 {[%emt 0:00:44]} g4+ {[%emt 0:00:20]} 59. Kh4 {[%emt 0:00:35]} f6 {[%emt 0:00:23]} 60. Rh7 {[%emt 0:00:24]} Kg6 {[%emt 0:00:48]} 61. Rc7 {[%emt 0:00:37]} Kf5 {[%emt 0:00:30]} 62. b6 {[%emt 0:00:43]} Rb5 {[%emt 0:00:25]} 63. b7 {[%emt 0:00:06]} Rb1 {[%emt 0:00:24]} 64. Rc5+ {[%emt 0:00:17]} Ke6 {[%emt 0:00:04]} 65. Kxg4 {[%emt 0:00:22]} Rxb7 {[%emt 0:00:06]} 66. Kxf4 {[%emt 0:00:04] Kd5} 1/2-1/2

[Event "27th Fajr Cup Masters 2019"]
[Site "Tehran"]
[Date "2019.02.08"]
[Round "5.4"]
[White "Harutjunyan, Gevorg"]
[Black "Ghaem Maghami, Ehsan"]
[Result "0-1"]
[ECO "A05"]
[WhiteElo "2449"]
[BlackElo "2540"]
[Annotator "RC"]
[PlyCount "74"]
[EventDate "2019.02.05"]
[EventType "swiss"]
[EventCountry "IRI"]
[SourceTitle "playchess.com"]
[Source "ChessBase"]
[SourceQuality "1"]
[TimeControl "5400+30"]

1. Nf3 {[%emt 0:00:00]} Nf6 {[%emt 0:04:29]} 2. g3 {[%emt 0:00:00]} b5 {[%emt 0:02:50]} 3. Bg2 {[%emt 0:00:44]} Bb7 {[%emt 0:01:48]} 4. O-O {[%emt 0:01:41]} e6 {[%emt 0:05:02]} 5. d3 {[%emt 0:00:53]} c5 {[%emt 0:01:34]} 6. e4 {[%emt 0:03:47]} d6 {[%emt 0:00:33]} 7. Nh4 {[%emt 0:06:23]} Nc6 {[%emt 0:00:30]} 8. f4 {[%emt 0:00:32]} Be7 {[%emt 0:00:17]} 9. Nd2 {[%emt 0:01:56]} O-O {[%emt 0:03:53]} 10. Kh1 {[%emt 0:03:00]} d5 {[%emt 0:09:11]} 11. e5 {[%emt 0:12:26]} Nd7 {[%emt 0:00:29]} 12. Ndf3 {[%emt 0:00:07]} d4 {[%emt 0:01:12]} 13. Qe2 {[%emt 0:02:51]} Re8 {[%emt 0:09:46]} 14. Bd2 {[%emt 0:03:06]} c4 {[%emt 0:05:06]} 15. Be1 {[%emt 0:06:56]} Rc8 {[%emt 0:05:51]} 16. Nd2 {[%emt 0:08:52]} Qc7 {[%emt 0:15:06]} 17. a3 {[%emt 0:15:11]} Nc5 {[%emt 0:06:18]} 18. Bf2 {[%emt 0:06:07]} Red8 {[%emt 0:05:36]} 19. Nhf3 {[%emt 0:03:20]} c3 {[%emt 0:04:45]} 20. bxc3 {[%emt 0:05:51]} dxc3 {[%emt 0:00:04]} 21. Bxc5 {[%emt 0:05:19]} cxd2 {[%emt 0:03:41]} 22. Be3 {[%emt 0:03:57]} Na5 {[%emt 0:00:51]} 23. Ra2 {[%emt 0:07:04]} Bd5 {[%emt 0:02:57]} 24. Rb2 {[%emt 0:00:02]} a6 {[%emt 0:03:00]} 25. Bxd2 {[%emt 0:01:49]} Bxa3 {[%emt 0:00:46]} 26. Rbb1 {[%emt 0:00:34]} Qxc2 {[%emt 0:00:51]} 27. f5 {[%emt 0:00:28]} Nb3 {[%emt 0:02:15]} 28. Rxb3 {[%emt 0:00:33]} Qxb3 {[%emt 0:00:20]} 29. f6 {[%emt 0:00:27]} Bf8 {[%emt 0:02:19]} 30. fxg7 {[%emt 0:00:05]} Bxg7 {[%emt 0:00:01]} 31. Bg5 {[%emt 0:00:15]} Rc2 {[%emt 0:01:35]} 32. Qe3 {[%emt 0:00:07]} Qa2 {[%emt 0:00:07]} 33. Rg1 {[%emt 0:01:10]} Re2 {[%emt 0:01:37]} 34. Qf4 {[%emt 0:00:33]} Rxg2 {[%emt 0:00:25]} 35. Rxg2 {[%emt 0:00:19]} Qb1+ {[%emt 0:00:05]} 36. Ng1 {[%emt 0:01:00]} Rc8 {[%emt 0:00:35]} 37. Bh6 {[%emt 0:00:30]} Rc2 {[%emt 0:00:19]} 0-1

[Event "27th Fajr Cup Masters 2019"]
[Site "Tehran"]
[Date "2019.02.09"]
[Round "7.1"]
[White "Fedorchuk, Sergey A."]
[Black "Ghaem Maghami, Ehsan"]
[Result "1/2-1/2"]
[ECO "B48"]
[WhiteElo "2604"]
[BlackElo "2540"]
[Annotator "ChessBase"]
[PlyCount "87"]
[EventDate "2019.02.05"]
[EventType "swiss"]
[EventCountry "IRI"]
[SourceTitle "playchess.com"]
[Source "ChessBase"]
[SourceQuality "1"]
[TimeControl "5400+30"]

1. e4 {[%emt 0:00:00]} c5 {[%emt 0:00:00]} 2. Nf3 {[%emt 0:00:00]} e6 {[%emt 0:00:00]} 3. d4 {[%emt 0:00:27]} cxd4 {[%emt 0:00:07]} 4. Nxd4 {[%emt 0:00:20]} Nc6 {[%emt 0:00:25]} 5. Nc3 {[%emt 0:01:21]} Qc7 {[%emt 0:00:25]} 6. Be3 {[%emt 0:08:09]} a6 {[%emt 0:00:20]} 7. Qf3 {[%emt 0:08:53]} Bd6 {[%emt 0:06:04]} 8. O-O-O {[%emt 0:12:54]} Be5 {[%emt 0:00:20]} 9. Nxc6 {[%emt 0:09:06]} bxc6 {[%emt 0:01:39]} 10. Bd4 {[%emt 0:00:06]} Bxd4 {[%emt 0:09:07]} 11. Rxd4 {[%emt 0:00:37]} Nf6 {[%emt 0:00:15]} 12. Qg3 {[%emt 0:17:48]} Qxg3 {[%emt 0:01:34]} 13. hxg3 {[%emt 0:00:03]} d5 {[%emt 0:00:22]} 14. Ra4 {[%emt 0:00:34]} Kd8 {[%emt 0:03:04]} 15. Be2 {[%emt 0:07:40]} h6 {[%emt 0:12:59]} 16. f4 {[%emt 0:08:44]} a5 {[%emt 0:11:41]} 17. Bf3 {[%emt 0:01:45]} Bb7 {[%emt 0:03:22]} 18. Ra3 {[%emt 0:05:05]} Kc7 {[%emt 0:09:44]} 19. Re1 {[%emt 0:00:36]} Rhe8 {[%emt 0:14:21]} 20. Na4 {[%emt 0:07:44]} Ba6 {[%emt 0:00:30]} 21. Nc5 {[%emt 0:00:30]} Bb5 22. exd5 {[%emt 0:00:30]} cxd5 {[%emt 0:01:00]} 23. Rc3 {[%emt 0:00:35]} Kb6 {[%emt 0:00:56]} 24. Nxe6 {[%emt 0:02:23]} fxe6 {[%emt 0:04:48]} 25. Rxe6+ {[%emt 0:00:07]} Ka7 {[%emt 0:00:10]} 26. Rc7+ {[%emt 0:00:38]} Kb8 {[%emt 0:00:06]} 27. Rxg7 {[%emt 0:01:13]} Ra6 {[%emt 0:00:09]} 28. Rxa6 {[%emt 0:00:11]} Bxa6 {[%emt 0:00:03]} 29. Rg6 {[%emt 0:00:00]} Rf8 {[%emt 0:00:12]} 30. Rxh6 {[%emt 0:00:09]} Bc8 {[%emt 0:00:04]} 31. Rg6 {[%emt 0:00:15]} Bf5 {[%emt 0:04:09]} 32. Rg7 {[%emt 0:00:10]} Be4 {[%emt 0:03:07]} 33. g4 {[%emt 0:00:58]} Rc8 {[%emt 0:07:47]} 34. g5 {[%emt 0:00:09]} Ne8 {[%emt 0:01:25]} 35. Re7 {[%emt 0:00:18]} Nd6 {[%emt 0:00:51]} 36. Bxe4 {[%emt 0:00:16]} dxe4 {[%emt 0:00:16]} 37. g4 {[%emt 0:03:00]} Rg8 {[%emt 0:01:24]} 38. b3 {[%emt 0:01:34]} Kc8 {[%emt 0:00:05]} 39. Kd2 {[%emt 0:00:29]} Rh8 {[%emt 0:03:03]} 40. g6 {[%emt 0:01:32]} Rh2+ {[%emt 0:00:10]} 41. Kc3 {[%emt 0:01:01]} Rg2 {[%emt 0:00:21]} 42. g5 {[%emt 0:01:01]} Rg3+ {[%emt 0:00:12]} 43. Kb2 {[%emt 0:00:49]} Nf5 {[%emt 0:01:13]} 44. Rf7 {[%emt 0:00:31]} 1/2-1/2

[Event "27th Fajr Cup Masters 2019"]
[Site "Tehran"]
[Date "2019.02.09"]
[Round "7.2"]
[White "Asgarizadeh, Ahmad"]
[Black "Ponkratov, Pavel"]
[Result "1/2-1/2"]
[ECO "C55"]
[WhiteElo "2423"]
[BlackElo "2630"]
[Annotator "ChessBase"]
[PlyCount "44"]
[EventDate "2019.02.05"]
[EventType "swiss"]
[EventCountry "IRI"]
[SourceTitle "playchess.com"]
[Source "ChessBase"]
[SourceQuality "1"]
[TimeControl "5400+30"]

1. e4 {[%emt 0:00:00]} e5 {[%emt 0:00:00]} 2. Nf3 {[%emt 0:00:04]} Nc6 {[%emt 0:00:00]} 3. Bc4 {[%emt 0:00:13]} Nf6 {[%emt 0:00:00]} 4. d3 {[%emt 0:00:11]} h6 {[%emt 0:00:00]} 5. c3 {[%emt 0:01:18]} d6 {[%emt 0:00:00]} 6. h3 {[%emt 0:01:32]} g6 {[%emt 0:00:04]} 7. O-O {[%emt 0:01:14]} Bg7 {[%emt 0:00:05]} 8. Re1 {[%emt 0:00:21]} O-O {[%emt 0:00:05]} 9. d4 {[%emt 0:01:50]} exd4 {[%emt 0:07:37]} 10. cxd4 {[%emt 0:00:05]} d5 {[%emt 0:00:03]} 11. exd5 {[%emt 0:00:11]} Nxd5 {[%emt 0:00:04]} 12. Bxd5 {[%emt 0:00:13]} Qxd5 {[%emt 0:00:08]} 13. Nc3 {[%emt 0:00:01]} Qd6 {[%emt 0:13:32]} 14. d5 {[%emt 0:14:38]} Ne7 {[%emt 0:00:14]} 15. Nb5 {[%emt 0:04:34]} Qxd5 {[%emt 0:00:06]} 16. Nxc7 {[%emt 0:07:36]} Qxd1 {[%emt 0:00:07]} 17. Rxd1 {[%emt 0:00:01]} Rb8 {[%emt 0:00:06]} 18. Bf4 {[%emt 0:00:08]} Nc6 {[%emt 0:00:04]} 19. Nb5 {[%emt 0:05:40]} Ra8 {[%emt 0:00:05]} 20. Nc7 {[%emt 0:00:12]} Rb8 {[%emt 0:00:04]} 21. Nb5 {[%emt 0:00:45]} Ra8 {[%emt 0:00:04]} 22. Nc7 {[%emt 0:00:04]} Rb8 {[%emt 0:00:03]} 1/2-1/2

[Event "27th Fajr Cup Masters 2019"]
[Site "Tehran"]
[Date "2019.02.09"]
[Round "7.3"]
[White "Firouzja, Alireza"]
[Black "Alizadeh, Gh"]
[Result "1-0"]
[ECO "B31"]
[WhiteElo "2618"]
[BlackElo "2191"]
[Annotator "ChessBase"]
[PlyCount "71"]
[EventDate "2019.02.05"]
[EventType "swiss"]
[EventCountry "IRI"]
[SourceTitle "playchess.com"]
[Source "ChessBase"]
[SourceQuality "1"]
[TimeControl "5400+30"]

1. e4 {[%emt 0:03:01]} c5 {[%emt 0:00:00]} 2. Nf3 {[%emt 0:00:07]} Nc6 {[%emt 0:00:00]} 3. Bb5 {[%emt 0:00:09]} g6 {[%emt 0:00:12]} 4. Bxc6 {[%emt 0:01:35]} dxc6 {[%emt 0:00:07]} 5. h3 {[%emt 0:00:12]} Bg7 {[%emt 0:00:06]} 6. d3 {[%emt 0:00:07]} Nf6 {[%emt 0:00:17]} 7. Nc3 {[%emt 0:00:08]} Nd7 {[%emt 0:00:12]} 8. Be3 {[%emt 0:00:12]} e5 {[%emt 0:00:07]} 9. Qd2 {[%emt 0:00:12]} h6 {[%emt 0:00:06]} 10. O-O {[%emt 0:00:21]} b6 {[%emt 0:00:04]} 11. Nh2 {[%emt 0:01:31]} Nf8 {[%emt 0:00:11]} 12. f4 {[%emt 0:00:19]} exf4 {[%emt 0:00:07]} 13. Bxf4 {[%emt 0:00:44]} g5 {[%emt 0:00:11]} 14. Bg3 {[%emt 0:03:49]} Be6 {[%emt 0:08:13]} 15. e5 {[%emt 0:07:48]} Qd4+ {[%emt 0:10:26]} 16. Rf2 {[%emt 0:05:59]} O-O-O {[%emt 0:25:22]} 17. Nf3 {[%emt 0:02:31]} Qb4 {[%emt 0:01:05]} 18. a3 {[%emt 0:01:11]} Qa5 {[%emt 0:00:06]} 19. Qe1 {[%emt 0:09:53]} Kb7 {[%emt 0:05:16]} 20. b4 {[%emt 0:12:29]} cxb4 {[%emt 0:00:54]} 21. axb4 {[%emt 0:00:24]} Qxb4 {[%emt 0:00:27]} 22. Ra4 {[%emt 0:00:16]} Qe7 {[%emt 0:12:20]} 23. Nd4 {[%emt 0:00:53]} Rxd4 {[%emt 0:00:59]} 24. Rxd4 {[%emt 0:01:01]} Qc5 {[%emt 0:13:32]} 25. Ra4 {[%emt 0:02:31]} Ng6 {[%emt 0:05:11]} 26. Ne4 {[%emt 0:02:31]} Qd5 {[%emt 0:00:22]} 27. Nd6+ {[%emt 0:06:28]} Kb8 {[%emt 0:00:01]} 28. d4 {[%emt 0:02:10]} Rd8 {[%emt 0:02:51]} 29. Qa1 {[%emt 0:01:44]} c5 {[%emt 0:01:04]} 30. Rxa7 {[%emt 0:00:57]} Rxd6 {[%emt 0:00:19]} 31. exd6 {[%emt 0:00:11]} Nf4 {[%emt 0:00:05]} 32. Bxf4 {[%emt 0:02:04]} gxf4 {[%emt 0:00:07]} 33. Rc7 {[%emt 0:00:57]} Qa2 {[%emt 0:00:40]} 34. Qxa2 {[%emt 0:00:11]} Bxa2 {[%emt 0:00:02]} 35. dxc5 {[%emt 0:00:14]} bxc5 {[%emt 0:01:19]} 36. c3 {[%emt 0:00:17]} 1-0

[Event "27th Fajr Cup Masters 2019"]
[Site "Tehran"]
[Date "2019.02.09"]
[Round "7.5"]
[White "Ter-Sahakyan, Samvel"]
[Black "Darini, Pouria"]
[Result "1/2-1/2"]
[ECO "B51"]
[WhiteElo "2593"]
[BlackElo "2475"]
[Annotator "ChessBase"]
[PlyCount "148"]
[EventDate "2019.02.05"]
[EventType "swiss"]
[EventCountry "IRI"]
[SourceTitle "playchess.com"]
[Source "ChessBase"]
[SourceQuality "1"]
[TimeControl "5400+30"]

1. e4 {[%emt 0:00:00]} c5 {[%emt 0:00:00]} 2. Nf3 {[%emt 0:00:00]} d6 {[%emt 0:00:00]} 3. Bb5+ {[%emt 0:00:00]} Nd7 {[%emt 0:00:39]} 4. c3 {[%emt 0:00:14]} Ngf6 {[%emt 0:01:33]} 5. Bd3 {[%emt 0:00:07]} b6 {[%emt 0:12:45]} 6. O-O {[%emt 0:07:19]} Bb7 {[%emt 0:00:09]} 7. Re1 {[%emt 0:00:07]} Rc8 {[%emt 0:11:49]} 8. Bc2 {[%emt 0:03:49]} Qc7 {[%emt 0:00:47]} 9. Na3 {[%emt 0:07:53]} a6 {[%emt 0:12:27]} 10. d4 {[%emt 0:03:13]} cxd4 {[%emt 0:00:03]} 11. cxd4 {[%emt 0:01:10]} e6 {[%emt 0:00:26]} 12. d5 {[%emt 0:08:24]} e5 {[%emt 0:00:50]} 13. Be3 {[%emt 0:04:04]} Ng4 {[%emt 0:06:02]} 14. Bg5 {[%emt 0:07:20]} h6 {[%emt 0:00:34]} 15. Bh4 {[%emt 0:00:30]} Ngf6 {[%emt 0:06:10]} 16. Rc1 {[%emt 0:17:00]} Be7 {[%emt 0:02:08]} 17. Qd2 {[%emt 0:08:24]} Qb8 {[%emt 0:02:37]} 18. Bb1 {[%emt 0:02:57]} O-O {[%emt 0:03:17]} 19. Nc4 {[%emt 0:00:35]} Rfe8 {[%emt 0:06:29]} 20. b4 {[%emt 0:01:16]} Rc7 {[%emt 0:06:49]} 21. Rc3 {[%emt 0:08:39]} Rec8 22. Rec1 Bd8 {[%emt 0:09:21]} 23. h3 {[%emt 0:02:59]} a5 {[%emt 0:04:01]} 24. a3 {[%emt 0:05:18]} axb4 {[%emt 0:00:55]} 25. axb4 {[%emt 0:00:02]} Ba6 {[%emt 0:04:26]} 26. Ne3 {[%emt 0:00:54]} Bb5 {[%emt 0:02:59]} 27. Nf5 {[%emt 0:02:59]} Rxc3 {[%emt 0:00:02]} 28. Rxc3 {[%emt 0:00:05]} Rxc3 {[%emt 0:01:15]} 29. Qxc3 {[%emt 0:00:02]} Kh7 {[%emt 0:00:30]} 30. N3d4 {[%emt 0:04:58]} exd4 {[%emt 0:01:46]} 31. Nxd4 {[%emt 0:00:07]} Kg8 {[%emt 0:01:11]} 32. Nxb5 {[%emt 0:00:27]} Nxe4 {[%emt 0:01:56]} 33. Qd4 {[%emt 0:03:56]} Bxh4 {[%emt 0:00:31]} 34. Qxe4 {[%emt 0:00:22]} Bf6 {[%emt 0:00:02]} 35. Qh7+ {[%emt 0:01:24]} Kf8 {[%emt 0:00:00]} 36. Bf5 {[%emt 0:00:30]} Ke7 {[%emt 0:00:21]} 37. Bxd7 {[%emt 0:00:41]} Kxd7 {[%emt 0:00:00]} 38. Qf5+ {[%emt 0:00:17]} Ke7 {[%emt 0:00:01]} 39. Qe4+ {[%emt 0:00:11]} Kf8 {[%emt 0:00:41]} 40. g3 {[%emt 0:00:20]} Be5 {[%emt 0:01:18]} 41. Qc4 {[%emt 0:00:25]} g5 {[%emt 0:01:05]} 42. Qc6 {[%emt 0:00:28]} Qd8 {[%emt 0:01:46]} 43. Kg2 {[%emt 0:00:25]} Kg8 {[%emt 0:01:12]} 44. Nc7 {[%emt 0:01:08]} Qf6 {[%emt 0:00:29]} 45. Qc2 {[%emt 0:00:44]} Bc3 {[%emt 0:00:29]} 46. Qe4 {[%emt 0:00:09]} Bd4 {[%emt 0:00:26]} 47. f4 {[%emt 0:00:57]} gxf4 {[%emt 0:00:12]} 48. Qxf4 {[%emt 0:00:18]} Qxf4 {[%emt 0:00:20]} 49. gxf4 {[%emt 0:00:08]} Bc3 {[%emt 0:00:00]} 50. b5 {[%emt 0:00:47]} Kf8 {[%emt 0:00:23]} 51. Kf3 {[%emt 0:00:51]} Ke7 {[%emt 0:00:21]} 52. Na6 {[%emt 0:00:05]} Bd2 {[%emt 0:01:41]} 53. Nb8 {[%emt 0:00:51]} f5 {[%emt 0:00:39]} 54. Nc6+ {[%emt 0:00:28]} Kf6 {[%emt 0:00:03]} 55. Nd4 {[%emt 0:00:12]} Bc3 {[%emt 0:00:22]} 56. Ne6 {[%emt 0:00:22]} Ke7 {[%emt 0:00:16]} 57. Ke2 {[%emt 0:00:43]} Kd7 {[%emt 0:00:37]} 58. Kd3 {[%emt 0:00:38]} Bf6 {[%emt 0:00:13]} 59. Kd2 {[%emt 0:00:14]} Bb2 {[%emt 0:00:52]} 60. Ke2 {[%emt 0:00:29]} Bf6 {[%emt 0:00:10]} 61. Kf2 {[%emt 0:00:17]} Bc3 {[%emt 0:00:53]} 62. Kf3 {[%emt 0:00:14]} Ke7 {[%emt 0:00:29]} 63. Ke3 {[%emt 0:01:15]} Kd7 {[%emt 0:00:04]} 64. Kf2 {[%emt 0:00:29]} Ke7 {[%emt 0:00:16]} 65. Kg3 {[%emt 0:00:04]} Be1+ {[%emt 0:00:04]} 66. Kg2 {[%emt 0:00:03]} Bc3 {[%emt 0:00:06]} 67. h4 {[%emt 0:00:08]} Kd7 {[%emt 0:00:36]} 68. h5 {[%emt 0:00:10]} Ke7 {[%emt 0:00:54]} 69. Kf3 {[%emt 0:00:04]} Kd7 {[%emt 0:00:24]} 70. Nf8+ {[%emt 0:00:53]} Ke8 {[%emt 0:00:14]} 71. Ne6 {[%emt 0:00:07]} Kd7 {[%emt 0:00:03]} 72. Ke3 {[%emt 0:00:04]} Bf6 {[%emt 0:00:13]} 73. Kd3 {[%emt 0:00:16]} Bb2 {[%emt 0:00:25]} 74. Kc2 {[%emt 0:01:05]} Bf6 {[%emt 0:00:07]} 1/2-1/2

[Event "27th Fajr Cup Masters 2019"]
[Site "Tehran"]
[Date "2019.02.09"]
[Round "7.6"]
[White "Mosadeghpour, Masoud"]
[Black "Veisi, Bardia"]
[Result "1-0"]
[ECO "B95"]
[WhiteElo "2531"]
[BlackElo "2243"]
[Annotator "ChessBase"]
[PlyCount "89"]
[EventDate "2019.02.05"]
[EventType "swiss"]
[EventCountry "IRI"]
[SourceTitle "playchess.com"]
[Source "ChessBase"]
[SourceQuality "1"]
[TimeControl "5400+30"]

1. e4 {[%emt 0:03:45]} c5 {[%emt 0:00:22]} 2. Nf3 {[%emt 0:00:03]} d6 {[%emt 0:00:05]} 3. d4 {[%emt 0:00:12]} cxd4 {[%emt 0:00:06]} 4. Nxd4 {[%emt 0:00:08]} Nf6 {[%emt 0:00:06]} 5. Nc3 {[%emt 0:00:05]} a6 {[%emt 0:00:05]} 6. Bg5 {[%emt 0:00:07]} e6 {[%emt 0:00:31]} 7. Qf3 {[%emt 0:00:06]} Nbd7 {[%emt 0:00:07]} 8. O-O-O {[%emt 0:00:08]} Qc7 {[%emt 0:00:06]} 9. Bd3 {[%emt 0:00:30]} b5 {[%emt 0:02:56]} 10. Rhe1 {[%emt 0:02:26]} Bb7 {[%emt 0:00:20]} 11. a3 {[%emt 0:00:27]} Be7 {[%emt 0:07:54]} 12. Qg3 {[%emt 0:01:34]} Ne5 {[%emt 0:10:17]} 13. Kb1 {[%emt 0:10:08]} O-O {[%emt 0:02:25]} 14. f4 {[%emt 0:04:34]} Nxd3 {[%emt 0:02:49]} 15. Rxd3 {[%emt 0:01:38]} Rfe8 {[%emt 0:05:01]} 16. Qh4 {[%emt 0:02:49]} Qc4 {[%emt 0:22:14]} 17. Ree3 {[%emt 0:28:15]} h6 {[%emt 0:02:28]} 18. Bxh6 {[%emt 0:04:55]} Nxe4 {[%emt 0:02:31]} 19. Qg4 {[%emt 0:04:26]} Bf8 {[%emt 0:05:18]} 20. Rxe4 {[%emt 0:17:29]} f5 {[%emt 0:13:30]} 21. Nxf5 {[%emt 0:00:30]} exf5 {[%emt 0:00:30]} 22. Rxc4 {[%emt 0:00:30]} bxc4 {[%emt 0:00:30]} 23. Qxf5 {[%emt 0:00:30]} cxd3 {[%emt 0:00:30]} 24. Bg5 {[%emt 0:00:30]} dxc2+ 25. Qxc2 Rab8 {[%emt 0:01:00]} 26. f5 {[%emt 0:01:51]} Bc6 {[%emt 0:03:20]} 27. Ka2 {[%emt 0:02:23]} Re1 {[%emt 0:02:51]} 28. Qd2 {[%emt 0:02:51]} Rg1 {[%emt 0:02:05]} 29. Qd4 {[%emt 0:00:41]} Rxg2 {[%emt 0:00:26]} 30. Qc4+ {[%emt 0:00:30]} Kh8 {[%emt 0:02:51]} 31. Qxc6 {[%emt 0:00:13]} Rxg5 {[%emt 0:00:25]} 32. Qc7 {[%emt 0:01:00]} Ra8 {[%emt 0:00:30]} 33. Qf7 {[%emt 0:00:43]} Rb8 {[%emt 0:00:59]} 34. Qc7 {[%emt 0:07:00]} Re8 {[%emt 0:00:40]} 35. Qf7 {[%emt 0:00:38]} Rb8 {[%emt 0:00:11]} 36. b4 {[%emt 0:01:13]} Rg2+ {[%emt 0:01:34]} 37. Kb3 {[%emt 0:00:01]} Rxh2 {[%emt 0:00:24]} 38. Nd5 {[%emt 0:00:38]} Rh6 {[%emt 0:05:02]} 39. Ka4 {[%emt 0:01:35]} g5 {[%emt 0:00:54]} 40. Nf6 {[%emt 0:02:09]} Bg7 {[%emt 0:01:08]} 41. Ne8 {[%emt 0:00:02]} Rh7 {[%emt 0:00:56]} 42. f6 {[%emt 0:00:01]} Bh6 {[%emt 0:00:10]} 43. Qg6 {[%emt 0:00:01]} g4 {[%emt 0:01:14]} 44. f7 {[%emt 0:00:09]} Bg7 {[%emt 0:00:31]} 45. Qf6 {[%emt 0:00:12]} 1-0

[Event "27th Fajr Cup Masters 2019"]
[Site "Tehran"]
[Date "2019.02.09"]
[Round "7.7"]
[White "Khodashenas, Mersad"]
[Black "Mousavi, Seyed Khalil"]
[Result "1/2-1/2"]
[ECO "B40"]
[WhiteElo "2455"]
[BlackElo "2485"]
[Annotator "ChessBase"]
[PlyCount "27"]
[EventDate "2019.02.05"]
[EventType "swiss"]
[EventCountry "IRI"]
[SourceTitle "playchess.com"]
[Source "ChessBase"]
[SourceQuality "1"]
[TimeControl "5400+30"]

1. e4 {[%emt 0:00:00]} c5 {[%emt 0:02:33]} 2. Nf3 {[%emt 0:00:00]} e6 {[%emt 0:00:07]} 3. d4 {[%emt 0:00:00]} cxd4 {[%emt 0:00:10]} 4. Nxd4 {[%emt 0:00:00]} Nf6 {[%emt 0:00:16]} 5. Nc3 {[%emt 0:00:00]} Nc6 {[%emt 0:00:08]} 6. Nxc6 {[%emt 0:00:00]} bxc6 {[%emt 0:00:07]} 7. e5 {[%emt 0:00:00]} Nd5 {[%emt 0:00:49]} 8. Ne4 {[%emt 0:00:00]} Qc7 {[%emt 0:00:29]} 9. f4 {[%emt 0:00:00]} Qb6 {[%emt 0:00:53]} 10. c4 {[%emt 0:00:12]} Bb4+ {[%emt 0:01:42]} 11. Ke2 {[%emt 0:00:02]} f5 {[%emt 0:00:19]} 12. exf6 {[%emt 0:07:20]} Nxf6 {[%emt 0:01:08]} 13. Be3 {[%emt 0:00:07]} Qa5 {[%emt 0:03:25]} 14. Nxf6+ {[%emt 0:02:13]} 1/2-1/2

[Event "27th Fajr Cup Masters 2019"]
[Site "Tehran"]
[Date "2019.02.10"]
[Round "8.3"]
[White "Ghaem Maghami, Ehsan"]
[Black "Mosadeghpour, Masoud"]
[Result "1/2-1/2"]
[ECO "D02"]
[WhiteElo "2540"]
[BlackElo "2531"]
[Annotator "ChessBase"]
[PlyCount "26"]
[EventDate "2019.02.05"]
[EventType "swiss"]
[EventCountry "IRI"]
[SourceTitle "playchess.com"]
[Source "ChessBase"]
[SourceQuality "1"]
[TimeControl "5400+30"]

1. Nf3 {[%emt 0:00:20]} d5 {[%emt 0:03:51]} 2. d4 {[%emt 0:00:47]} Nf6 {[%emt 0:00:14]} 3. c4 {[%emt 0:00:38]} e6 {[%emt 0:00:10]} 4. g3 {[%emt 0:00:12]} Bb4+ {[%emt 0:00:11]} 5. Bd2 {[%emt 0:00:08]} Be7 {[%emt 0:00:13]} 6. Bg2 {[%emt 0:00:10]} O-O {[%emt 0:00:31]} 7. O-O {[%emt 0:00:13]} c6 {[%emt 0:00:11]} 8. Qc2 {[%emt 0:00:19]} Nbd7 {[%emt 0:00:30]} 9. Bg5 {[%emt 0:01:36]} b6 {[%emt 0:01:51]} 10. Nc3 {[%emt 0:01:26]} Ba6 {[%emt 0:01:05]} 11. cxd5 {[%emt 0:00:34]} cxd5 {[%emt 0:01:41]} 12. Rfc1 {[%emt 0:00:12]} b5 {[%emt 0:04:28]} 13. a3 {[%emt 0:00:26]} h6 {[%emt 0:05:13]} 1/2-1/2